bitfinex/quotes_BTCUSD_20240729
["timestamp","ask_amount","ask_price","bid_price","bid_amount"]
[1722241837607,0.23081003,69764.0,69763.0,0.021]
[1722241837810,0.57482603,69764.0,69763.0,0.021]
[1722241838015,0.51601844,69764.0,69763.0,0.021]
[1722241838228,0.34386888,69764.0,69763.0,0.021]
[1722241838400,0.34542308,69764.0,69763.0,0.021]
[1722241838842,0.34386888,69764.0,69763.0,0.021]
[1722241838992,0.32136644,69764.0,69763.0,0.021]
[1722241840461,0.31136644,69764.0,69763.0,0.021]
[1722241840767,0.19669444,69764.0,69763.0,0.021]
[1722241841211,0.1395,69764.0,69763.0,0.021]
[1722241841407,0.19658731,69764.0,69763.0,0.021]
[1722241841954,0.31125354,69764.0,69763.0,0.021]
[1722241842252,0.33375661,69764.0,69763.0,0.021]
[1722241842707,0.31125354,69764.0,69763.0,0.021]
[1722241842915,0.254172,69764.0,69763.0,0.021]
[1722241843118,0.31127162,69764.0,69763.0,0.021]
[1722241843871,0.254172,69764.0,69763.0,0.021]
[1722241844130,0.31126133,69764.0,69763.0,0.021]
[1722241844613,0.254172,69764.0,69763.0,0.021]
[1722241844849,0.54048576,69764.0,69763.0,0.021]
[1722241845034,0.31114176,69764.0,69763.0,0.021]
[1722241845234,0.31269596,69764.0,69763.0,0.021]
[1722241845444,0.54203996,69764.0,69763.0,0.021]
[1722241845642,0.31269596,69764.0,69763.0,0.021]
[1722241845849,0.33519903,69764.0,69763.0,0.021]
[1722241846808,0.22052703,69764.0,69763.0,0.021]
[1722241847009,0.13667283,69764.0,69763.0,0.021]
[1722241847766,0.13667283,69764.0,69763.0,0.03064105]
[1722241847959,0.13631044,69764.0,69763.0,0.03064105]
[1722241848309,0.13631044,69764.0,69763.0,0.021]
[1722241848955,0.13786464,69764.0,69763.0,0.021]
[1722241850202,0.25253664,69764.0,69763.0,0.021]
[1722241850361,0.25098244,69764.0,69763.0,0.021]
[1722241850757,0.25253664,69764.0,69763.0,0.021]
[1722241851096,0.00964105,69763.0,69760.0,0.000924]
[1722241851309,0.1453,69762.0,69760.0,0.000924]
[1722241851588,0.394031,69761.0,69760.0,0.000924]
[1722241851808,0.83651329,69761.0,69760.0,0.000924]
[1722241852365,0.83651329,69761.0,69760.0,0.009924]
[1722241852601,0.32780529,69761.0,69760.0,0.009924]
[1722241852772,0.32780529,69761.0,69760.0,0.000924]
[1722241853195,0.32880529,69761.0,69760.0,0.000924]
[1722241854211,0.35131,69761.0,69760.0,0.000924]
[1722241854415,0.29471185,69761.0,69760.0,0.000924]
[1722241854615,0.35086618,69761.0,69760.0,0.000924]
[1722241855601,0.32836147,69761.0,69760.0,0.000924]
[1722241855824,0.31713133,69761.0,69760.0,0.000924]
[1722241857043,0.31713133,69761.0,69760.0,0.004924]
[1722241857239,0.54648533,69761.0,69760.0,0.004924]
[1722241857684,0.54577455,69761.0,69760.0,0.004924]
[1722241858583,0.51283547,69761.0,69760.0,0.004924]
[1722241858780,0.56773918,69761.0,69760.0,0.004924]
[1722241860432,0.56784446,69761.0,69760.0,0.004924]
[1722241860890,0.56781929,69761.0,69760.0,0.004924]
[1722241861262,0.89306304,69761.0,69760.0,0.004924]
[1722241861686,1.17200106,69761.0,69760.0,0.004924]
[1722241861886,1.07611131,69761.0,69760.0,0.004924]
[1722241862084,0.79675731,69761.0,69760.0,0.004924]
[1722241862323,0.56640331,69761.0,69760.0,0.004924]
[1722241862563,0.22737231,69761.0,69760.0,0.004924]
[1722241862774,0.05956784,69761.0,69760.0,0.004924]
[1722241863006,0.05956784,69761.0,69760.0,0.01460343]
[1722241863212,0.05456784,69761.0,69760.0,0.01060343]
[1722241863421,0.0015542,69764.0,69760.0,0.01060343]
[1722241863635,0.05480555,69763.0,69760.0,0.01060343]
[1722241863809,0.05480555,69762.0,69760.0,0.01060343]
[1722241864028,0.06280555,69761.0,69760.0,0.01160343]
[1722241866139,0.07730942,69761.0,69760.0,0.27038143]
[1722241866270,0.07730942,69761.0,69760.0,0.15570343]
[1722241866271,0.01031399,69761.0,69760.0,0.15570343]
[1722241866474,0.05485011,69761.0,69760.0,0.15570343]
[1722241866677,0.05478321,69761.0,69760.0,0.15570343]
[1722241866979,0.01030399,69761.0,69760.0,0.15570343]
[1722241867169,0.05478321,69761.0,69760.0,0.15570343]
[1722241867377,0.001,69761.0,69760.0,0.16370343]
[1722241867572,0.05578321,69761.0,69760.0,0.16370343]
[1722241868422,0.05578321,69761.0,69760.0,0.27938143]
[1722241869237,0.07828692,69761.0,69760.0,0.27938143]
[1722241869618,0.07828692,69761.0,69760.0,0.16470343]
[1722241869994,0.07828692,69761.0,69760.0,0.50873843]
[1722241869995,0.07841731,69761.0,69760.0,0.50873843]
[1722241870195,0.07841731,69761.0,69760.0,0.27938143]
[1722241870401,0.0559136,69761.0,69760.0,0.27938143]
[1722241870528,0.01137075,69761.0,69760.0,0.27938143]
[1722241871141,0.01137075,69761.0,69760.0,0.27838143]
[1722241871985,0.01237075,69761.0,69760.0,0.29238143]
[1722241873605,0.0245036,69761.0,69760.0,0.29238143]
[1722241873808,0.01232224,69761.0,69760.0,0.29238143]
[1722241874219,0.01231986,69761.0,69760.0,0.29238143]
[1722241876167,0.01226401,69761.0,69760.0,0.22908143]
[1722241877288,0.03476761,69761.0,69760.0,0.22908143]
[1722241878525,0.01226401,69761.0,69760.0,0.22908143]
[1722241878950,0.01226401,69761.0,69760.0,0.11440343]
[1722241879146,0.01226401,69761.0,69760.0,0.03260343]
[1722241879268,0.05217677,69761.0,69760.0,0.03260343]
[1722241879688,0.05217677,69761.0,69760.0,0.022924]
[1722241879956,0.05217677,69761.0,69760.0,0.03260343]
[1722241880228,0.05617021,69761.0,69760.0,0.01060343]
[1722241880639,0.05617021,69761.0,69760.0,0.01460343]
[1722241880815,0.05717021,69761.0,69760.0,0.02460343]
[1722241881797,0.07967364,69761.0,69760.0,0.02460343]
[1722241883579,0.02350343,69761.0,69760.0,0.02460343]
[1722241883771,0.07974392,69761.0,69760.0,0.02460343]
[1722241884251,0.03429053,69761.0,69760.0,0.02460343]
[1722241884448,0.07923281,69761.0,69760.0,0.02460343]
[1722241885412,0.05672938,69761.0,69760.0,0.02460343]
[1722241886110,0.001,69761.0,69760.0,0.02460343]
[1722241886683,0.05631506,69761.0,69760.0,0.02460343]
[1722241887782,0.05631506,69761.0,69760.0,0.10610343]
[1722241888566,0.07881931,69761.0,69760.0,0.10610343]
[1722241889210,0.07881931,69761.0,69760.0,0.02460343]
[1722241889563,0.07881931,69761.0,69760.0,0.014924]
[1722241890027,0.07740987,69761.0,69760.0,0.014924]
[1722241892521,0.62690909,69761.0,69760.0,0.014924]
[1722241892759,0.90626309,69761.0,69760.0,0.014924]
[1722241893046,0.88375884,69761.0,69760.0,0.014924]
[1722241893266,0.88355076,69761.0,69760.0,0.014924]
[1722241893753,0.88355076,69761.0,69760.0,0.010924]
[1722241893983,0.82058254,69761.0,69760.0,0.010924]
[1722241894221,0.82758254,69761.0,69760.0,0.011924]
[1722241894734,0.82058254,69761.0,69760.0,0.010924]
[1722241894969,0.81958254,69761.0,69760.0,0.000924]
[1722241895199,0.82758254,69761.0,69760.0,0.001924]
[1722241895430,0.82958254,69761.0,69760.0,0.001924]
[1722241895672,0.82758254,69761.0,69760.0,0.001924]
[1722241895912,0.47116729,69761.0,69760.0,0.001924]
[1722241896574,0.47401548,69761.0,69760.0,0.001924]
[1722241896729,0.49652051,69761.0,69760.0,0.001924]
[1722241897212,0.47401548,69761.0,69760.0,0.001924]
[1722241897528,0.24466148,69761.0,69760.0,0.001924]
[1722241898845,0.24166148,69761.0,69760.0,0.001924]
[1722241899695,0.179777,69761.0,69760.0,0.001924]
[1722241899937,0.25583853,69761.0,69760.0,0.001924]
[1722241900322,0.26083853,69761.0,69760.0,0.002924]
[1722241900523,0.23833352,69761.0,69760.0,0.002924]
[1722241900707,0.23333352,69761.0,69760.0,0.001924]
[1722241901440,0.23733352,69761.0,69760.0,0.001924]
[1722241902048,0.12265652,69761.0,69760.0,0.001924]
[1722241903556,0.0691,69761.0,69760.0,0.001924]
[1722241903754,0.12256621,69761.0,69760.0,0.001924]
[1722241904007,0.07997118,69761.0,69760.0,0.001924]
[1722241904209,0.07997118,69761.0,69760.0,0.01160343]
[1722241904647,0.07997118,69761.0,69760.0,0.001924]
[1722241905207,0.05746621,69761.0,69760.0,0.001924]
[1722241906469,0.05854607,69761.0,69760.0,0.001924]
[1722241908300,0.08105108,69761.0,69760.0,0.001924]
[1722241908720,0.05854607,69761.0,69760.0,0.001924]
[1722241909752,0.05835505,69761.0,69760.0,0.001924]
[1722241912117,0.08086006,69761.0,69760.0,0.001924]
[1722241912335,0.19553706,69761.0,69760.0,0.001924]
[1722241913089,0.12886379,69761.0,69760.0,0.001924]
[1722241913313,0.87594407,69761.0,69760.0,0.001924]
[1722241913516,0.492031,69761.0,69760.0,0.001924]
[1722241913710,0.17324312,69761.0,69760.0,0.001924]
[1722241913915,0.05856612,69761.0,69760.0,0.001924]
[1722241914680,0.20384393,69761.0,69760.0,0.01160343]
[1722241914880,0.20384393,69761.0,69760.0,0.001924]
[1722241915086,0.05856612,69761.0,69760.0,0.01160343]
[1722241915668,0.05856612,69761.0,69760.0,0.15260343]
[1722241915842,0.05331187,69761.0,69760.0,0.15260343]
[1722241916245,0.05300061,69761.0,69760.0,0.15260343]
[1722241916445,0.04900061,69761.0,69760.0,0.15260343]
[1722241916620,0.0023942,69764.0,69761.0,0.0796]
[1722241916970,0.12913093,69762.0,69761.0,0.0766]
[1722241917173,0.12913093,69762.0,69761.0,0.793285]
[1722241917174,0.04899988,69762.0,69761.0,0.793285]
[1722241917374,0.00894017,69762.0,69761.0,1.022639]
[1722241917580,0.00894017,69762.0,69761.0,1.021639]
[1722241917786,0.0734855,69762.0,69761.0,1.021639]
[1722241918167,0.00994017,69762.0,69761.0,0.573931]
[1722241918476,0.01149437,69762.0,69761.0,0.575931]
[1722241918667,0.00994017,69762.0,69761.0,0.492931]
[1722241919001,0.00993972,69762.0,69761.0,0.492931]
[1722241919228,0.001,69762.0,69761.0,0.492931]
[1722241919831,0.00993972,69762.0,69761.0,0.492931]
[1722241920060,0.00893972,69762.0,69761.0,0.481931]
[1722241920261,0.03144216,69762.0,69761.0,0.481931]
[1722241920517,0.03244216,69762.0,69761.0,0.495931]
[1722241920807,0.00993979,69762.0,69761.0,0.481931]
[1722241921597,0.01093979,69762.0,69761.0,0.495931]
[1722241921762,0.01093979,69762.0,69761.0,0.493931]
[1722241922013,0.002,69762.0,69761.0,0.493931]
[1722241922222,0.01093972,69762.0,69761.0,0.493931]
[1722241922645,0.01093986,69762.0,69761.0,0.493931]
[1722241923865,0.03344235,69762.0,69761.0,0.493931]
[1722241924741,0.02450249,69762.0,69761.0,0.493931]
[1722241924983,0.01193975,69762.0,69761.0,0.504931]
[1722241925185,0.01193971,69762.0,69761.0,0.734285]
[1722241925907,0.11949647,69762.0,69761.0,0.734285]
[1722241926549,0.11849647,69762.0,69761.0,0.493931]
[1722241926674,0.11849647,69762.0,69761.0,0.264577]
[1722241927053,0.01093971,69762.0,69761.0,0.264577]
[1722241927403,0.01193971,69762.0,69761.0,0.500931]
[1722241928368,0.02550231,69762.0,69761.0,0.500931]
[1722241928550,0.01193981,69762.0,69761.0,0.500931]
[1722241928701,0.01193981,69762.0,69761.0,0.440631]
[1722241929501,0.01193981,69762.0,69761.0,0.669985]
[1722241929704,0.01193981,69762.0,69761.0,0.735085]
[1722241931760,0.01193956,69762.0,69761.0,0.74475163]
[1722241931916,0.03444179,69762.0,69761.0,0.74475163]
[1722241932111,0.03444179,69762.0,69761.0,0.51539763]
[1722241932341,0.03444182,69762.0,69761.0,0.74475163]
[1722241933274,0.03444182,69762.0,69761.0,0.97410563]
[1722241933686,0.14194558,69762.0,69761.0,0.97410563]
[1722241934088,0.03444182,69762.0,69761.0,0.74475163]
[1722241934305,0.14194315,69762.0,69761.0,0.74475163]
[1722241934471,0.14194313,69762.0,69761.0,0.74475163]
[1722241934869,0.13300057,69762.0,69761.0,0.97410563]
[1722241935070,0.14194001,69762.0,69761.0,0.97410563]
[1722241937383,0.11943775,69762.0,69761.0,0.97410563]
[1722241938192,0.11942402,69762.0,69761.0,0.97410563]
[1722241940746,0.03444156,69762.0,69761.0,0.97410563]
[1722241941003,0.09948321,69762.0,69761.0,0.97410563]
[1722241941212,0.01349373,69762.0,69761.0,0.97410563]
[1722241941605,0.01193909,69762.0,69761.0,0.97410563]
[1722241942121,0.06904528,69762.0,69761.0,0.97410563]
[1722241942252,0.01349315,69762.0,69761.0,0.97410563]
[1722241943302,0.07798233,69762.0,69761.0,0.97410563]
[1722241943666,0.069524,69762.0,69761.0,0.97410563]
[1722241943874,0.00503355,69762.0,69761.0,0.97410563]
[1722241944089,0.00658775,69762.0,69761.0,0.97410563]
[1722241944291,0.02405623,69762.0,69761.0,0.97410563]
[1722241944513,0.02250203,69762.0,69761.0,0.97410563]
[1722241944652,0.02405623,69762.0,69761.0,0.97410563]
[1722241945057,0.02250203,69762.0,69761.0,0.97410563]
[1722241946270,0.0015542,69763.0,69762.0,0.885528]
[1722241946504,0.0015542,69763.0,69762.0,0.95728184]
[1722241947871,0.0035542,69763.0,69762.0,0.98028184]
[1722241948058,0.002,69763.0,69762.0,0.98028184]
[1722241948720,0.002,69763.0,69762.0,1.35963284]
[1722241948927,0.002,69763.0,69762.0,1.51093284]
[1722241949338,0.06448793,69773.0,69772.0,0.15]
[1722241949538,0.00084,69784.0,69782.0,0.05]
[1722241949771,0.00084,69784.0,69782.0,1.080797]
[1722241949972,0.00084,69784.0,69782.0,1.09019504]
[1722241950347,0.00084,69784.0,69782.0,1.04019504]
[1722241950751,0.00084,69784.0,69782.0,1.6106588]
[1722241951065,0.00084,69784.0,69782.0,1.6336588]
[1722241952592,0.00084,69784.0,69782.0,1.5336588]
[1722241952793,0.00084,69784.0,69782.0,1.59378004]
[1722241953194,0.02333484,69783.0,69782.0,1.60778004]
[1722241953528,0.02333484,69783.0,69782.0,1.59378004]
[1722241953529,0.00084,69783.0,69782.0,1.59378004]
[1722241953924,0.00084,69783.0,69782.0,1.62178004]
[1722241954340,0.00084,69783.0,69782.0,1.7616588]
[1722241954544,0.003,69795.0,69794.0,1.124461]
[1722241954779,0.003,69795.0,69794.0,1.325761]
[1722241955118,0.003,69795.0,69794.0,1.225761]
[1722241955326,0.003,69795.0,69794.0,1.36563976]
[1722241955774,0.003,69795.0,69794.0,0.72968125]
[1722241956169,0.003,69795.0,69794.0,0.670115]
[1722241956571,0.02549078,69795.0,69794.0,0.670115]
[1722241956748,0.02549078,69795.0,69794.0,0.128623]
[1722241957084,0.02549078,69795.0,69794.0,0.587115]
[1722241957285,0.003,69795.0,69794.0,0.587115]
[1722241957601,0.003,69795.0,69794.0,0.357869]
[1722241957802,0.003,69795.0,69794.0,0.128623]
[1722241958007,0.004,69795.0,69794.0,0.027]
[1722241958211,0.1411,69795.0,69794.0,0.027]
[1722241959488,0.1411,69795.0,69794.0,0.013]
[1722241959639,0.1401,69795.0,69788.0,0.114632]
[1722241959828,0.1401,69795.0,69794.0,0.01]
[1722241960026,0.1401,69795.0,69794.0,0.014]
[1722241960477,0.1401,69795.0,69794.0,0.01]
[1722241960712,0.1401,69795.0,69786.0,0.229272]
[1722241960877,0.1401,69795.0,69788.0,0.128632]
[1722241961216,0.1401,69795.0,69789.0,0.229261]
[1722241961424,0.1401,69795.0,69794.0,0.114623]
[1722241961425,0.003,69795.0,69794.0,0.114623]
[1722241961703,0.003,69795.0,69794.0,0.343869]
[1722241962003,0.003,69795.0,69794.0,0.573115]
[1722241962823,0.003,69795.0,69794.0,0.577115]
[1722241963244,0.003,69795.0,69794.0,0.718715]
[1722241963449,0.003,69795.0,69794.0,0.728715]
[1722241963645,0.003,69795.0,69794.0,0.957961]
[1722241964740,0.003,69795.0,69794.0,0.665815]
[1722241964944,0.02549104,69795.0,69794.0,0.665815]
[1722241965352,0.003,69795.0,69794.0,0.665815]
[1722241966248,0.00384,69795.0,69794.0,0.665815]
[1722241966455,0.00384,69795.0,69794.0,0.67569978]
[1722241966978,0.00384,69795.0,69794.0,0.59699978]
[1722241968454,0.02633128,69795.0,69794.0,0.59699978]
[1722241969210,0.00384,69795.0,69794.0,0.73249978]
[1722241969605,0.06674,69795.0,69794.0,0.05572646]
[1722241969817,0.06674,69795.0,69794.0,0.128623]
[1722241970728,0.06674,69795.0,69794.0,0.014]
[1722241972172,0.14604,69795.0,69794.0,0.014]
[1722241972377,0.16853329,69795.0,69794.0,0.014]
[1722241972755,0.14604,69795.0,69794.0,0.014]
[1722241976192,0.16853353,69795.0,69794.0,0.014]
[1722241976549,0.28315453,69795.0,69794.0,0.014]
[1722241976815,0.14604,69795.0,69794.0,0.014]
[1722241977171,0.260661,69795.0,69794.0,0.014]
[1722241977565,0.260661,69795.0,69794.0,0.014]
[1722241978925,0.56144655,69795.0,69794.0,0.014]
[1722241979282,1.16993055,69795.0,69794.0,0.014]
[1722241979480,1.26993055,69795.0,69794.0,0.014]
[1722241979887,1.29242756,69795.0,69794.0,0.014]
[1722241980400,1.29242756,69795.0,69794.0,0.004]
[1722241980815,1.29642756,69795.0,69794.0,0.005]
[1722241981017,1.27393055,69795.0,69794.0,0.004]
[1722241981217,0.1399,69786.0,69781.0,0.0044245]
[1722241981416,0.06426365,69782.0,69781.0,0.0044245]
[1722241981634,0.36164209,69786.0,69781.0,0.0044245]
[1722241981635,0.08568487,69783.0,69781.0,0.0044245]
[1722241982042,0.08568487,69782.0,69781.0,0.0044245]
[1722241982919,0.0642694,69783.0,69782.0,0.0044245]
[1722241983128,0.1399,69786.0,69783.0,0.0044245]
[1722241983302,0.08569181,69785.0,69783.0,0.0044245]
[1722241983604,0.08570414,69785.0,69783.0,0.0044245]
[1722241983980,0.10820226,69785.0,69784.0,0.0044245]
[1722241984349,0.02249812,69785.0,69784.0,0.0044245]
[1722241987107,0.02249812,69785.0,69784.0,0.0064245]
[1722241987313,0.10823924,69785.0,69784.0,0.0064245]
[1722241987623,0.10823924,69785.0,69784.0,0.0034245]
[1722241987838,0.10923924,69785.0,69784.0,0.0104245]
[1722241987998,0.10923924,69785.0,69784.0,0.0114245]
[1722241988606,0.02349812,69785.0,69784.0,0.0114245]
[1722241990340,0.13072807,69785.0,69784.0,0.0114245]
[1722241991043,0.02349812,69785.0,69784.0,0.0114245]
[1722241994504,0.001,69785.0,69784.0,0.0114245]
[1722241995690,0.001,69785.0,69784.0,0.5846195]
[1722241995814,0.001,69785.0,69784.0,0.3553415]
[1722241996941,0.10830358,69785.0,69784.0,0.1260635]
[1722241997141,0.001,69785.0,69784.0,0.1260635]
[1722241997337,0.001,69785.0,69784.0,0.3553415]
[1722241997764,0.02349652,69785.0,69784.0,0.3553415]
[1722241997961,0.001,69785.0,69784.0,0.3553415]
[1722241998574,0.1468,69785.0,69784.0,0.0114245]
[1722241999312,0.001,69785.0,69784.0,0.0875485]
[1722241999925,0.10830577,69785.0,69784.0,0.0875485]
[1722242000277,0.001,69785.0,69784.0,0.0123485]
[1722242000715,0.001,69785.0,69784.0,0.3562655]
[1722242000890,0.001,69785.0,69784.0,0.1269875]
[1722242001315,0.02349645,69785.0,69784.0,0.1269875]
[1722242001927,0.16839645,69785.0,69784.0,0.0123485]
[1722242002510,0.08879645,69785.0,69784.0,0.1269875]
[1722242002709,0.08879645,69785.0,69784.0,0.0123485]
[1722242002710,0.0663,69785.0,69784.0,0.0123485]
[1722242003085,0.001,69785.0,69784.0,0.1269875]
[1722242003346,0.001,69785.0,69784.0,0.0123485]
[1722242004233,0.001,69785.0,69784.0,0.4947655]
[1722242004435,0.001,69785.0,69784.0,0.4325655]
[1722242006579,0.001,69785.0,69784.0,0.3562655]
[1722242006981,0.10833414,69785.0,69784.0,0.3562655]
[1722242007561,0.001,69785.0,69784.0,0.3562655]
[1722242009151,0.02349621,69785.0,69784.0,0.3562655]
[1722242010165,0.13084904,69785.0,69784.0,0.3562655]
[1722242010587,0.02349621,69785.0,69784.0,0.3562655]
[1722242010969,0.02349621,69785.0,69784.0,0.1269875]
[1722242011339,0.02349621,69785.0,69784.0,0.3562655]
[1722242013051,0.08789621,69785.0,69784.0,0.0123485]
[1722242013676,0.21682917,69785.0,69784.0,0.0123485]
[1722242013884,0.08789621,69785.0,69784.0,0.0123485]
[1722242014721,0.0654,69785.0,69784.0,0.0123485]
[1722242015271,0.19433296,69785.0,69784.0,0.0123485]
[1722242015479,0.0654,69785.0,69784.0,0.0123485]
[1722242015671,0.19440785,69785.0,69784.0,0.0123485]
[1722242016067,0.19440773,69785.0,69784.0,0.0123485]
[1722242016574,0.0654,69785.0,69784.0,0.0123485]
[1722242016993,0.001,69785.0,69784.0,0.0123485]
[1722242017195,0.001,69785.0,69784.0,0.0904485]
[1722242018047,0.02349631,69785.0,69784.0,0.0904485]
[1722242018444,0.001,69785.0,69784.0,0.0904485]
[1722242019913,0.1417,69785.0,69784.0,0.0123485]
[1722242020064,0.001,69785.0,69784.0,0.2416265]
[1722242020267,0.001,69785.0,69784.0,0.6665435]
[1722242021581,0.02349622,69785.0,69784.0,0.6665435]
[1722242022110,0.001,69785.0,69784.0,0.6665435]
[1722242023105,0.001,69785.0,69784.0,0.5855435]
[1722242024469,0.001,69785.0,69784.0,0.7317435]
[1722242025362,0.02349631,69785.0,69784.0,0.7317435]
[1722242025557,0.02349631,69785.0,69784.0,0.4384655]
[1722242026335,0.001,69785.0,69784.0,0.4384655]
[1722242029649,0.02349642,69785.0,69784.0,0.4384655]
[1722242030050,0.001,69785.0,69784.0,0.4384655]
[1722242030698,0.001,69785.0,69784.0,0.2091875]
[1722242031616,0.00184,69785.0,69784.0,0.0945485]
[1722242031765,0.00184,69785.0,69784.0,0.0123485]
[1722242033510,0.02433654,69785.0,69784.0,0.0123485]
[1722242033709,0.00184,69785.0,69784.0,0.0123485]
[1722242034577,0.00184,69785.0,69784.0,0.1269875]
[1722242034781,0.00184,69785.0,69784.0,0.0123485]
[1722242036218,0.00184,69785.0,69784.0,0.1269875]
[1722242036804,0.00184,69785.0,69784.0,0.3562655]
[1722242037008,0.0243365,69785.0,69784.0,0.3562655]
[1722242037516,0.0226449,69785.0,69784.0,0.3562655]
[1722242038042,0.0226449,69785.0,69784.0,0.9569215]
[1722242038228,0.00084,69795.0,69789.0,0.2601555]
[1722242038229,0.12511292,69790.0,69789.0,0.2601555]
[1722242038525,0.00084,69795.0,69794.0,0.1967475]
[1722242038728,0.00084,69795.0,69794.0,0.7382395]
[1722242039104,0.00084,69795.0,69794.0,0.5089935]
[1722242039317,0.00084,69795.0,69794.0,0.5732935]
[1722242039751,0.00084,69795.0,69794.0,0.8025395]
[1722242041247,0.05296632,69802.0,69798.0,0.114616]
[1722242041721,0.07545907,69802.0,69798.0,0.114616]
[1722242041933,0.07545907,69802.0,69801.0,0.0034245]
[1722242042352,0.07545907,69802.0,69801.0,0.1971355]
[1722242042353,0.02249275,69802.0,69801.0,0.1971355]
[1722242042772,0.02249275,69802.0,69801.0,0.4263585]
[1722242042773,0.02340949,69802.0,69801.0,0.4263585]
[1722242042969,0.02340949,69802.0,69801.0,0.4929585]
[1722242043141,0.02340949,69802.0,69801.0,0.1971355]
[1722242044102,0.02240949,69802.0,69801.0,0.1971355]
[1722242044311,0.02240949,69802.0,69801.0,0.0825245]
[1722242044523,0.02240949,69802.0,69801.0,0.1971355]
[1722242045764,0.02240949,69802.0,69801.0,0.4263585]
[1722242046115,0.02240949,69802.0,69801.0,0.7987815]
[1722242046325,0.08686606,69802.0,69801.0,0.7987815]
[1722242046643,0.08597441,69804.0,69803.0,0.343824]
[1722242046889,0.00084,69808.0,69804.0,0.114606]
[1722242046890,0.10746801,69805.0,69804.0,0.114606]
[1722242047125,0.10746801,69805.0,69804.0,0.343819]
[1722242047269,0.10746801,69806.0,69805.0,0.343813]
[1722242047445,0.00084,69808.0,69806.0,0.114603]
[1722242047648,0.32424329,69807.0,69806.0,0.0014245]
[1722242047849,0.21684355,69807.0,69806.0,0.0014245]
[1722242049251,0.21684355,69807.0,69806.0,0.0124245]
[1722242049402,0.33144455,69807.0,69806.0,0.0124245]
[1722242049836,0.21684355,69807.0,69806.0,0.0124245]
[1722242050030,0.56064755,69807.0,69806.0,0.0124245]
[1722242050627,0.78985055,69807.0,69806.0,0.0114245]
[1722242051393,0.78985055,69807.0,69806.0,0.0174245]
[1722242051589,0.79085055,69807.0,69806.0,0.0174245]
[1722242051835,0.79085055,69807.0,69806.0,0.0064245]
[1722242052188,0.79085055,69807.0,69806.0,0.0074245]
[1722242052655,1.07005355,69807.0,69806.0,0.007]
[1722242052859,1.21501055,69807.0,69806.0,0.007]
[1722242053168,1.06905355,69807.0,69806.0,0.001]
[1722242053565,1.07305355,69807.0,69806.0,0.001]
[1722242054067,1.07305355,69807.0,69796.0,0.0004245]
[1722242054068,0.254718,69797.0,69796.0,0.0004245]
[1722242054283,0.114619,69796.0,69795.0,0.0004245]
[1722242054526,0.24348232,69796.0,69795.0,0.0004245]
[1722242054926,0.404963,69795.0,69794.0,0.0004245]
[1722242055688,0.30459172,69795.0,69794.0,0.0004245]
[1722242056315,0.18997072,69795.0,69794.0,0.0004245]
[1722242057332,0.0611,69795.0,69794.0,0.0004245]
[1722242058594,0.175721,69795.0,69794.0,0.0004245]
[1722242058998,0.175721,69795.0,69794.0,0.0034245]
[1722242060015,0.0611,69795.0,69794.0,0.0034245]
[1722242060416,0.0611,69795.0,69794.0,0.0114245]
[1722242061019,0.175721,69795.0,69794.0,0.0114245]
[1722242062287,0.0611,69795.0,69794.0,0.0114245]
[1722242062494,0.175721,69795.0,69794.0,0.0114245]
[1722242062696,0.404963,69795.0,69794.0,0.0114245]
[1722242064342,0.85921447,69795.0,69794.0,0.0114245]
[1722242064769,0.714205,69795.0,69794.0,0.0114245]
[1722242065764,0.714205,69795.0,69794.0,0.0123485]
[1722242066529,0.714205,69795.0,69794.0,0.0093485]
[1722242066766,0.722205,69795.0,69794.0,0.0023485]
[1722242067169,0.725205,69795.0,69794.0,0.0023485]
[1722242072318,0.954447,69795.0,69794.0,0.0023485]
[1722242073962,0.354863,69795.0,69794.0,0.0023485]
[1722242074159,0.49985985,69795.0,69794.0,0.0023485]
[1722242074541,0.354863,69795.0,69794.0,0.0023485]
[1722242075740,0.72910185,69795.0,69794.0,0.0023485]
[1722242076602,0.81010185,69795.0,69794.0,0.0023485]
[1722242076779,0.728405,69795.0,69794.0,0.0023485]
[1722242078880,0.87339877,69795.0,69794.0,0.0023485]
[1722242079448,0.8733991,69795.0,69794.0,0.0023485]
[1722242079564,0.728405,69795.0,69794.0,0.0023485]
[1722242082491,0.87339799,69795.0,69794.0,0.0023485]
[1722242083337,0.87339643,69795.0,69794.0,0.0023485]
[1722242083698,0.728405,69795.0,69794.0,0.0023485]
[1722242087877,0.647405,69795.0,69794.0,0.0023485]
[1722242089379,0.876647,69795.0,69794.0,0.0023485]
[1722242089804,1.1061225,69795.0,69794.0,0.001924]
[1722242089991,1.3353645,69795.0,69794.0,0.001924]
[1722242090617,1.16804153,69795.0,69794.0,0.001924]
[1722242090817,0.956547,69795.0,69794.0,0.001924]
[1722242093414,1.16807967,69795.0,69794.0,0.001924]
[1722242093622,0.956547,69795.0,69794.0,0.001924]
[1722242093796,1.16812242,69795.0,69794.0,0.001924]
[1722242095389,0.956547,69795.0,69794.0,0.001924]
[1722242095559,0.96633542,69795.0,69794.0,0.001924]
[1722242098542,1.01633542,69795.0,69794.0,0.001924]
[1722242099663,0.96633542,69795.0,69794.0,0.001924]
[1722242099913,1.01633542,69795.0,69794.0,0.001924]
[1722242100529,1.22807079,69795.0,69794.0,0.001924]
[1722242100891,1.22807753,69795.0,69794.0,0.001924]
[1722242102068,1.22808175,69795.0,69794.0,0.001924]
[1722242102487,1.17808175,69795.0,69794.0,0.001924]
[1722242102695,1.17808522,69795.0,69794.0,0.001924]
[1722242102933,1.22808522,69795.0,69794.0,0.001924]
[1722242105802,1.01633542,69795.0,69794.0,0.001924]
[1722242105998,1.22810016,69795.0,69794.0,0.001924]
[1722242107866,1.01633542,69795.0,69794.0,0.001924]
[1722242111499,1.24557742,69795.0,69794.0,0.001924]
[1722242117838,1.29515292,69795.0,69794.0,0.001924]
[1722242118073,1.34515292,69795.0,69794.0,0.001924]
[1722242119330,1.44515292,69795.0,69794.0,0.001924]
[1722242119783,1.45707196,69795.0,69794.0,0.001924]
[1722242121394,1.45407196,69795.0,69794.0,0.001924]
[1722242121597,1.48689383,69795.0,69794.0,0.001924]
[1722242121798,1.48189383,69795.0,69794.0,0.001924]
[1722242122258,1.49589402,69795.0,69794.0,0.002924]
[1722242122470,1.95275415,69795.0,69794.0,0.002924]
[1722242122605,2.18573903,69795.0,69794.0,0.002924]